Cogmind - Beta 13 @@@ ROGUE MODE // 2024.04.08 @ 19:20:17 Player: Demo Result: Destroyed by Alpha 7 with Multirail Performance ------------- Evolutions (7) 3500 Regions Visited (14) 2800 Robots Destroyed (48) 240 Value Destroyed (1367) 1367 Prototype IDs (28) 560 Alien Tech Used (0) 0 Bonus (1126) 1126 TOTAL SCORE: 9593 Bonus ------- Follower Combat Kills 64 Met Imprinter 300 Was Imprinted 300 Scanned by Researcher 500 Friendly Fire -38 Cogmind --------- Core Integrity 0/1300 Matter 266/300 Energy 60/100 System Corruption 22% Temperature Cool (0) Movement Core (100) Ox1 Location -3/Testing Parts ------- > --- POWER (2) -------- (None) > --- PROPULSION (8) --- (None) > --- UTILITY (9) ------ Improved Cloaking Device Experimental System Shield > --- WEAPON (2) ------- Vibroblade > --- INVENTORY (5) ---- Advanced Energy Well (500) Peak State ------------ > --- POWER ------------ Micro Antimatter Reactor > --- PROPULSION ------- Antigrav System Cooled VTOL Module Cooled VTOL Module Field Propulsion Array Q-thruster Q-thruster > --- UTILITY ---------- Experimental Cooling System Large Storage Unit Enhanced Optical Array Experimental Signal Interpreter Experimental Utility Shielding Makeshift Hacking Suite System Mapper Experimental System Shield Improved Corruption Screen > --- WEAPON ----------- Vibroblade Vibroblade > --- INVENTORY -------- Light Particle Reactor Micro Antimatter Reactor Improved Quantum Reactor Advanced Power Amplifier Experimental Cooling System Advanced Energy Well Experimental Matter Compressor Advanced Weight Redist. System Nanoactuators Advanced Transmission Jammer Improved Cloaking Device Experimental Hardlight Generator Improved Force Field Fusion Bomb Launcher [Rating: 135] Favorites ----------- Power F-cell Engine Engine F-cell Engine Power Core Micro Nuclear Core Reactor Light Antimatter Reactor Propulsion Xenon Bombardment Thruster Treads Armored Treads Wheel Armored Wheel Hover Unit Improved Gyrokinetic Inverter Flight Unit Xenon Bombardment Thruster Utility Large Storage Unit Device Seismic Detector Storage Large Storage Unit Processor Advanced Visual Processing Unit Hackware System Shield Protection Propulsion Shielding Weapon Katana Energy Gun Small Laser Ballistic Gun Subdweller Machine Gun Launcher Grenade Launcher Slashing Weapon Katana Build | -11 -10 -10 -10 -8 -7 -6 -6 -6 -6 -5 -5 -4 -3 -3 ------- Run | Yrd Mat Min Sub Mat Fac Fac Low Low Zio Pro Fac Fac Res Tes Slots Evolved 14 | . . . . 4 2 2 . . . . 2 2 2 . Power 1 | . . . . . . . . . . . 1 . . . Propulsion 6 | . . . . 2 2 . . . . . 1 1 . . Utility 7 | . . . . 2 . 2 . . . . . 1 2 . Weapon . | . . . . . . . . . . . . . . . Parts Attached 143 | 7 2 2 10 22 10 15 3 1 1 1 10 19 16 24 Power 35 | 1 . 1 3 3 1 8 . . . . 2 8 3 5 Engine 16 | 1 . 1 3 3 . 4 . . . . 1 3 . . Core 7 | . . . . . 1 4 . . . . 1 1 . . Reactor 12 | . . . . . . . . . . . . 4 3 5 Propulsion 37 | 2 1 . 2 11 4 1 2 . 1 1 2 3 5 2 Treads 3 | 1 . . . 2 . . . . . . . . . . Leg . | . . . . . . . . . . . . . . . Wheel 7 | 1 1 . 2 3 . . . . . . . . . . Hover 8 | . . . . . 2 . . . . . . 3 2 1 Flight 19 | . . . . 6 2 1 2 . 1 1 2 . 3 1 Utility 50 | 2 1 . 1 4 2 6 1 1 . . 6 7 8 11 Device 24 | 1 . . . 2 1 2 1 . . . 4 4 3 6 Storage 5 | 1 1 . . . . 1 . . . . . 2 . . Processor 5 | . . . . 1 1 . . . . . . . 1 2 Hackware 5 | . . . . . . 1 . . . . . . 3 1 Protection 11 | . . . 1 1 . 2 . 1 . . 2 1 1 2 Artifact . | . . . . . . . . . . . . . . . Weapon 21 | 2 . 1 4 4 3 . . . . . . 1 . 6 Energy Gun 3 | 1 . . . 2 . . . . . . . . . . Energy Cannon . | . . . . . . . . . . . . . . . Ballistic Gun 4 | 1 . . 3 . . . . . . . . . . . Ballistic Cannon . | . . . . . . . . . . . . . . . Launcher 5 | . . 1 1 2 . . . . . . . . . 1 Special Weapon . | . . . . . . . . . . . . . . . Impact Weapon . | . . . . . . . . . . . . . . . Slashing Weapon 9 | . . . . . 3 . . . . . . 1 . 5 Piercing Weapon . | . . . . . . . . . . . . . . . Special Melee Weapon . | . . . . . . . . . . . . . . . Unidentified Prototypes 14 | . . . . 2 . 1 . . . . 2 1 1 7 Corrupted Parts 2 | . . . . . . . . . . . . . . 2 System Corruption 14 | . . . . . . . . . . . . . . 14 Parts Lost 49 | . . . 6 2 . . 2 2 . 1 2 1 5 28 Power 6 | . . . 1 1 . . . . . . 1 . . 3 Propulsion 20 | . . . 3 . . . 2 1 . 1 1 1 2 9 Utility 18 | . . . . . . . . 1 . . . . 3 14 Weapon 5 | . . . 2 1 . . . . . . . . . 2 Highest Loss Streak 17 | . . . 2 1 . . 2 2 . 1 1 1 2 17 To Critical Strikes . | . . . . . . . . . . . . . . . Average Slot Usage (%) 92 | . 85 97 98 85 84 98 100 96 96 100 93 91 89 71 Engine 5 | . . 11 12 7 . . 6 6 6 6 5 1 . . Core 1 | . . . . . 1 5 . . . . 5 1 . . Wheel 8 | . 21 28 27 19 . . . . . . . . . . Hover 1 | . . . . . 4 . . . . . . 5 7 1 Flight 23 | . . . . 5 37 39 40 36 36 40 40 32 28 22 Device 11 | . 14 14 12 10 7 12 13 13 13 13 11 14 12 6 Storage 8 | . 14 14 14 9 7 6 6 6 6 6 5 5 4 3 Processor 6 | . . . . 6 14 11 6 6 6 6 5 5 4 8 Hackware 3 | . . . . . . 1 6 6 6 6 5 5 13 11 Protection 4 | . . . 1 7 . 5 6 6 6 6 5 5 4 3 Energy Gun 3 | . 14 14 8 6 . . . . . . . . . . Ballistic Gun 2 | . 14 . 14 . . . . . . . . . . . Launcher 2 | . . 14 5 8 . . . . . . . . . . Slashing Weapon 6 | . . . . . 9 13 13 13 13 13 5 9 5 6 Naked Turns . | . . . . . . . . . . . . . . . Heaviest Build 50 | 9 24 29 34 45 33 41 40 39 39 39 42 49 43 50 Greatest Support 54 | 10 22 22 32 46 30 44 48 48 44 44 52 52 52 54 Greatest Overweight (x) 4 | . 1 1 3 4 2 1 . 1 1 . 1 1 . . Average Overweight (x) . | . . 1 . 1 . . . . . . . . . . Largest Inventory Capacity 15 | 8 15 15 15 15 15 15 15 15 15 15 15 15 15 15 Average Capacity 14 | 7 9 15 15 15 15 15 15 15 15 15 15 15 15 13 Most Carried 15 | 7 8 11 15 15 15 15 15 13 15 15 15 15 15 15 Average Carried 13 | 1 7 9 14 14 14 14 13 12 13 14 14 14 14 12 Final Capacity 15 | 8 15 15 15 15 15 15 15 15 15 15 15 15 15 5 Final Carried 15 | 6 8 11 15 15 15 15 13 12 15 14 15 15 15 1 Class Distribution -------------------- 48% | Mutant 24% | Sprinter 16% | Scavenger-Mutant 9% | Hacker-Sprinter Dominant Class ---------------- Mutant | -10/Materials Mutant | -10/Mines Mutant | -10/Subcaves Scavenger-Mutant | -8/Materials Mutant | -7/Factory Mutant | -6/Factory Sprinter | -6/Lower Caves Sprinter | -6/Lower Caves Mutant | -6/Zion Sprinter | -5/Proximity Caves Sprinter | -5/Factory Sprinter | -4/Factory Hacker-Sprinter | -3/Research Hacker-Sprinter | -3/Testing Resources | -11 -10 -10 -10 -8 -7 -6 -6 -6 -6 -5 -5 -4 -3 -3 ----------- Run | Yrd Mat Min Sub Mat Fac Fac Low Low Zio Pro Fac Fac Res Tes Matter Collected 2338 | 180 . 303 206 376 240 256 119 . 20 . 50 210 . 378 Remotely . | . . . . . . . . . . . . . . . Salvage Created 1491 | 195 . 53 280 399 32 200 . . . . 147 . . 185 Parts 91 | 15 . 6 15 27 5 10 . . . . 5 . . 8 Haulers Intercepted 3 | . . . . 1 . 1 . . . . 1 . . . Recyclers Shooed 1 | . . . . 1 . . . . . . . . . . Parts Field Recycled . | . . . . . . . . . . . . . . . Retrieved Matter . | . . . . . . . . . . . . . . . Parts Self-Destructed 11 | . . . 6 . . . 2 2 . 1 . . . . Prevented . | . . . . . . . . . . . . . . . Kills | -11 -10 -10 -10 -8 -7 -6 -6 -6 -6 -5 -5 -4 -3 -3 ------- Run | Yrd Mat Min Sub Mat Fac Fac Low Low Zio Pro Fac Fac Res Tes Combat Hostiles Destroyed 21 | . . 3 9 7 . 1 . . . . . . . 1 Melee 2 | . . . . . . 1 . . . . . . . 1 Guns 7 | . . . 5 2 . . . . . . . . . . AOE 12 | . . 3 4 5 . . . . . . . . . . Classes Destroyed 15 | 2 . 1 1 7 1 1 . . . . . . . 2 Worker 4 | . . . . 3 . 1 . . . . . . . . Builder 2 | . . . . . 2 . . . . . . . . . Tunneler 6 | 5 . . . 1 . . . . . . . . . . Hauler 3 | . . . . 1 . 1 . . . . 1 . . . Recycler 1 | 1 . . . . . . . . . . . . . . Mechanic 2 | . . . . 1 . . . . . . . . . 1 Operator 2 | . . . . 1 . . . . . . 1 . . . Watcher 5 | . . . . 3 . 1 . . . . 1 . . . Swarmer 3 | . . 3 . . . . . . . . . . . . Grunt 6 | . . . . 6 . . . . . . . . . . Brawler 1 | . . . . 1 . . . . . . . . . . Researcher 2 | . . . . . . . . . . . . . . 2 Sentry 1 | . . . . . . 1 . . . . . . . . Striker 1 | . . . . . . . . . . . . . . 1 Subdweller 9 | . . . 9 . . . . . . . . . . . Best Kill Streak 6 | 6 . 3 2 5 1 3 . . . . 1 . . 2 Combat Bots Only 3 | . . 3 2 2 . 1 . . . . . . . 1 Max Kills in Single Turn 2 | 1 . 1 1 2 1 1 . . . . 1 . . 1 Gunslinging . | . . . . . . . . . . . . . . . Exploded 1 | . . 1 1 1 . . . . . . . . . . Melee 1 | . . . . . . 1 . . . . . . . 1 Uniques/NPCs Destroyed . | . . . . . . . . . . . . . . . Combat | -11 -10 -10 -10 -8 -7 -6 -6 -6 -6 -5 -5 -4 -3 -3 -------- Run | Yrd Mat Min Sub Mat Fac Fac Low Low Zio Pro Fac Fac Res Tes Hostile Shots Fired 444 | . . 5 40 57 . 20 33 7 . 7 29 49 42 155 Missed 196 | . . 2 14 17 . 10 14 3 . 2 18 30 22 64 Damage Taken 5965 | . . 32 756 925 . 83 313 110 . 120 126 324 448 2728 Core 2144 | . . 9 210 367 . 32 94 . . 28 . 100 179 1125 Absorbed by Shields . | . . . . . . . . . . . . . . . Redirected to Shielding 358 | . . . . 8 . 8 38 10 . 21 17 24 46 186 Regen/Repaired (Parts) 20 | . . . . . . . . . . . . 20 . . Core Remaining (%) 73 | 100 . . 12 33 100 . . . . 81 100 91 . . Volleys Fired 98 | 8 . 3 56 30 . . . . . . . . . 1 Largest 2 | 2 . 1 2 2 . . . . . . . . . 1 Hottest 80 | 60 . 33 73 80 . . . . . . . . . 52 Shots Fired 143 | 16 . 3 81 42 . . . . . . . . . 1 Gun 98 | 16 . . 64 18 . . . . . . . . . . Cannon . | . . . . . . . . . . . . . . . Launcher 45 | . . 3 17 24 . . . . . . . . . 1 Special . | . . . . . . . . . . . . . . . Kinetic 53 | 8 . . 45 . . . . . . . . . . . Thermal 27 | 8 . . 19 . . . . . . . . . . . Explosive 36 | . . . 11 24 . . . . . . . . . 1 Electromagnetic 27 | . . 3 6 18 . . . . . . . . . . Robot Hit Streak 23 | 10 . . 23 10 . . . . . . . . . 11 Robot Miss Streak 3 | 1 . . 3 2 . . . . . . . . . . Penetration Max . | . . . . . . . . . . . . . . . Secondary Targets 1 | . . . 1 . . . . . . . . . . . Max Gunslinging Chain 1 | . . . 1 . . . . . . . . . . . Shots Hit Robots 139 | 11 . . 46 24 5 14 . . . . 9 5 . 25 Core Hits 96 | 7 . 3 23 35 2 5 . . . . 4 1 . 16 Critical Kills . | . . . . . . . . . . . . . . . Critical Parts Destroyed . | . . . . . . . . . . . . . . . Critical Strikes 7 | . . . . . . 2 . . . . . 1 . 4 Sever 7 | . . . . . . 2 . . . . . 1 . 4 Melee Attacks 120 | . . . . . 9 22 1 . 5 . 15 13 5 50 Impact . | . . . . . . . . . . . . . . . Slashing 120 | . . . . . 9 22 1 . 5 . 15 13 5 50 Piercing . | . . . . . . . . . . . . . . . Sneak Attacks 11 | . . . . . 3 3 . . . . 2 2 . 1 Combat Hostiles . | . . . . . . . . . . . . . . . Follow-up Attacks 6 | . . . . . . 4 . . . . . 1 . 1 Damage Inflicted 6896 | 138 . 98 1534 1670 244 581 . . . . 431 268 . 1932 Guns 934 | 138 . . 560 236 . . . . . . . . . . Cannons . | . . . . . . . . . . . . . . . Explosions 3208 | . . 98 974 1434 . . . . . . . . . 702 Melee 2754 | . . . . . 244 581 . . . . 431 268 . 1230 Ramming . | . . . . . . . . . . . . . . . Kinetic 454 | 50 . . 404 . . . . . . . . . . . Thermal 244 | 88 . . 156 . . . . . . . . . . . Explosive 2702 | . . . 566 1434 . . . . . . . . . 702 Electromagnetic 742 | . . 98 408 236 . . . . . . . . . . Impact . | . . . . . . . . . . . . . . . Slashing 2754 | . . . . . 244 581 . . . . 431 268 . 1230 Piercing . | . . . . . . . . . . . . . . . Highest Corruption 22 | . . . . 2 . . . . . . . . 1 22 Average Corruption 6 | . . . . 2 . . . . . . . . 1 13 Corruption Purged . | . . . . . . . . . . . . . . . Corruption Blocked 8 | . . . . . . . . . . . 8 . . . Effects 17 | . . . . 3 . . . . . . . . 1 13 Message Errors 2 | . . . . . . . . . . . . . 1 1 Matter Fused 7 | . . . . 2 . . . . . . . . . 5 Heat Flow Errors 2 | . . . . 1 . . . . . . . . . 1 Energy Discharges 4 | . . . . . . . . . . . . . . 4 Alerts 1 | . . . . . . . . . . . . . . 1 Misdirections 1 | . . . . . . . . . . . . . . 1 Overload Shots . | . . . . . . . . . . . . . . . Overflow Damage 198 | . . . . 43 24 53 . . . . 76 . . 2 Projectiles . | . . . . . . . . . . . . . . . Explosions 43 | . . . . 43 . . . . . . . . . . Melee 155 | . . . . . 24 53 . . . . 76 . . 2 Knockbacks . | . . . . . . . . . . . . . . . Impact . | . . . . . . . . . . . . . . . Kinetic . | . . . . . . . . . . . . . . . Secondary . | . . . . . . . . . . . . . . . Self-Inflicted Damage 116 | . . 5 . 18 . . . . . . . . . 93 Shots 3 | . . 1 . 1 . . . . . . . . . 1 Rammed . | . . . . . . . . . . . . . . . Targets Rammed . | . . . . . . . . . . . . . . . Kicked . | . . . . . . . . . . . . . . . Crushed . | . . . . . . . . . . . . . . . Highest Temperature 202 | . . . . 98 . . 165 64 . . 202 8 119 107 Average Temperature 50 | . . . . 35 . . 93 25 . . 115 2 46 38 Received Heat Transfer 612 | . . . 60 333 . 27 36 12 . 18 . . 36 90 Siege Activations . | . . . . . . . . . . . . . . . Robots Corrupted . | . . . . . . . . . . . . . . . Combat Hostiles . | . . . . . . . . . . . . . . . Parts Fried . | . . . . . . . . . . . . . . . Impact Corruptions . | . . . . . . . . . . . . . . . Robots Melted . | . . . . . . . . . . . . . . . Combat Hostiles . | . . . . . . . . . . . . . . . Parts Melted 1 | . . . 1 . . . . . . . . . . . Heat Transferred 550 | 200 . . 350 . . . . . . . . . . . Parts Sabotaged . | . . . . . . . . . . . . . . . Parts Stolen . | . . . . . . . . . . . . . . . Parts Stripped . | . . . . . . . . . . . . . . . Power Chain Reactions 1 | . . . 1 . . . . . . . . . . . Alert | -11 -10 -10 -10 -8 -7 -6 -6 -6 -6 -5 -5 -4 -3 -3 ------- Run | Yrd Mat Min Sub Mat Fac Fac Low Low Zio Pro Fac Fac Res Tes Peak Influence 544 | 30 25 124 . 369 150 144 . . . . 199 544 360 491 Initial 214 | . 19 9 . . 129 73 . . . . 12 89 214 198 Average 165 | 11 23 118 . 189 143 68 . . . . 70 326 286 320 Maximum Alert Level 2 | . . . . 1 . . . . . . . 2 1 2 Low Security (%) 67 | 100 100 100 . 53 100 100 . . . . 100 21 . 1 Level 1 27 | . . . . 46 . . . . . . . 43 100 80 Level 2 5 | . . . . . . . . . . . . 34 . 18 Level 3 . | . . . . . . . . . . . . . . . Level 4 . | . . . . . . . . . . . . . . . Level 5 . | . . . . . . . . . . . . . . . High Security . | . . . . . . . . . . . . . . . Max Security . | . . . . . . . . . . . . . . . Squads Dispatched 12 | . 1 . . 1 . 2 . . . . 1 2 . 5 Investigation 4 | . 1 . . . . 1 . . . . 1 . . 1 Extermination 3 | . . . . . . 1 . . . . . 1 . 1 Reinforcement 5 | . . . . 1 . . . . . . . 1 . 3 Assault . | . . . . . . . . . . . . . . . Garrison . | . . . . . . . . . . . . . . . Intercept . | . . . . . . . . . . . . . . . Searches Triggered 2 | . . . . . . . . . . . . 1 . 1 Construction Impeded . | . . . . . . . . . . . . . . . Haulers Reinforced 1 | . . . . . . . . . . . . 1 . . Active Scanning Responses . | . . . . . . . . . . . . . . . Cargo Convoy Interrupts . | . . . . . . . . . . . . . . . Stealth | -11 -10 -10 -10 -8 -7 -6 -6 -6 -6 -5 -5 -4 -3 -3 --------- Run | Yrd Mat Min Sub Mat Fac Fac Low Low Zio Pro Fac Fac Res Tes Distress Signals 6 | . . . . 3 . 1 . . . . . 2 . . Communications Jammed . | . . . . . . . . . . . . . . . Distress Signals . | . . . . . . . . . . . . . . . Times Spotted 178 | . . 3 30 23 1 12 18 1 . 7 10 27 15 31 Peak Tracking Total 16 | . . 3 13 8 1 9 16 1 . 10 6 14 10 13 Tactical Retreats 27 | . . 1 2 . . . 2 1 . 1 2 11 3 4 Traps | -11 -10 -10 -10 -8 -7 -6 -6 -6 -6 -5 -5 -4 -3 -3 ------- Run | Yrd Mat Min Sub Mat Fac Fac Low Low Zio Pro Fac Fac Res Tes Traps Triggered 5 | . . . 3 1 . . . . . . . . . 1 Indirectly . | . . . . . . . . . . . . . . . Trap Hack Attempts . | . . . . . . . . . . . . . . . Triggered . | . . . . . . . . . . . . . . . Disarmed . | . . . . . . . . . . . . . . . Reprogrammed . | . . . . . . . . . . . . . . . Reused . | . . . . . . . . . . . . . . . Traps Extracted . | . . . . . . . . . . . . . . . Installed . | . . . . . . . . . . . . . . . Triggered 1 | . . . 1 . . . . . . . . . . . Machines | -11 -10 -10 -10 -8 -7 -6 -6 -6 -6 -5 -5 -4 -3 -3 ---------- Run | Yrd Mat Min Sub Mat Fac Fac Low Low Zio Pro Fac Fac Res Tes Machines Disabled 10 | . . . . 4 . . . . . . . . . 6 Max in Single Turn 1 | . . . . 1 . . . . . . . . . 1 Machines Repaired . | . . . . . . . . . . . . . . . Machines Dismantled . | . . . . . . . . . . . . . . . Machines Sabotaged . | . . . . . . . . . . . . . . . Overloaded Fab Kills . | . . . . . . . . . . . . . . . Hacking | -11 -10 -10 -10 -8 -7 -6 -6 -6 -6 -5 -5 -4 -3 -3 --------- Run | Yrd Mat Min Sub Mat Fac Fac Low Low Zio Pro Fac Fac Res Tes Machines Accessed 16 | . 2 . . 2 3 2 . . 1 . 2 3 . 1 Terminals 6 | . 2 . . 2 2 . . . . . . . . . Fabricators 4 | . . . . . . 1 . . . . 1 1 . 1 Repair Stations 4 | . . . . . 1 . . . . . 1 2 . . Recycling Units . | . . . . . . . . . . . . . . . Scanalyzers 1 | . . . . . . 1 . . . . . . . . Garrison Access . | . . . . . . . . . . . . . . . Total Hacks 33 | . 6 . . 2 6 6 . . 3 . 3 6 . 1 Successful 15 | . 2 . . 1 2 2 . . 3 . 2 3 . . Failed 18 | . 4 . . 1 4 4 . . . . 1 3 . 1 Catastrophic 6 | . 1 . . 1 2 . . . . . . 1 . 1 Database Lockouts . | . . . . . . . . . . . . . . . Manual 74 | . 6 . . 3 2 . . . . . 22 5 14 22 Terminals 13 | . 6 . . 2 5 . . . . . . . . . Fabricators 9 | . . . . . . 4 . . . . 2 2 . 1 Repair Stations 6 | . . . . . 1 . . . . . 1 4 . . Recycling Units . | . . . . . . . . . . . . . . . Scanalyzers 2 | . . . . . . 2 . . . . . . . . Garrison Access . | . . . . . . . . . . . . . . . Terminal Hacks 8 | . 2 . . 1 2 . . . 3 . . . . . Record 1 | . . . . . 1 . . . . . . . . . Part Schematic 4 | . . . . . 1 . . . 3 . . . . . Robot Analysis 2 | . 2 . . . . . . . . . . . . . Dispatch Records 1 | . . . . 1 . . . . . . . . . . Fabricator Hacks 5 | . . . . . . 2 . . . . 2 1 . . Network Status 1 | . . . . . . . . . . . . 1 . . Load Schematic 2 | . . . . . . 1 . . . . 1 . . . Build 2 | . . . . . . 1 . . . . 1 . . . Repair Station Hacks 2 | . . . . . . . . . . . . 2 . . Scan Component 1 | . . . . . . . . . . . . 1 . . Repair 1 | . . . . . . . . . . . . 1 . . Recycling Unit Hacks . | . . . . . . . . . . . . . . . Scanalyzer . | . . . . . . . . . . . . . . . Garrison Access Hacks . | . . . . . . . . . . . . . . . Unauthorized Hacks . | . . . . . . . . . . . . . . . Terminals . | . . . . . . . . . . . . . . . Fabricators . | . . . . . . . . . . . . . . . Repair Stations . | . . . . . . . . . . . . . . . Recycling Units . | . . . . . . . . . . . . . . . Scanalyzers . | . . . . . . . . . . . . . . . Garrison Access . | . . . . . . . . . . . . . . . Data Cores Recovered . | . . . . . . . . . . . . . . . Used . | . . . . . . . . . . . . . . . Hacking Detections 13 | . 2 . . 2 3 2 . . . . 2 1 . 1 Full Trace Events 3 | . 1 . . . . 1 . . . . 1 . . . Feedback Events . | . . . . . . . . . . . . . . . Feedback Blocked . | . . . . . . . . . . . . . . . Robot Schematics Acquired 3 | . . . . . . . . . . . . . . 3 Robots Built . | . . . . . . . . . . . . . . . Authchips . | . . . . . . . . . . . . . . . Time . | . . . . . . . . . . . . . . . Total Robot Build Rating . | . . . . . . . . . . . . . . . Part Schematics Acquired 61 | . . . . . 1 . . . 3 . 13 . 14 30 Parts Built 4 | . . . . . . 2 . . . . 2 . . . Authchips . | . . . . . . . . . . . . . . . Time 76 | . . . . . . 51 . . . . 25 . . . Total Part Build Rating 4 | . . . . . . 2 . . . . 2 . . . Parts Repaired 1 | . . . . . . . . . . . . 1 . . Time 38 | . . . . . . . . . . . . 38 . . Parts Recycled . | . . . . . . . . . . . . . . . Recycled Matter . | . . . . . . . . . . . . . . . Retrieved Matter . | . . . . . . . . . . . . . . . Retrieved Components . | . . . . . . . . . . . . . . . Parts Scanalyzed . | . . . . . . . . . . . . . . . Part Schematics Acquired . | . . . . . . . . . . . . . . . Parts Damaged . | . . . . . . . . . . . . . . . Bothacking | -11 -10 -10 -10 -8 -7 -6 -6 -6 -6 -5 -5 -4 -3 -3 ------------ Run | Yrd Mat Min Sub Mat Fac Fac Low Low Zio Pro Fac Fac Res Tes Used RIF Installer . | . . . . . . . . . . . . . . . Robots Hacked . | . . . . . . . . . . . . . . . Non-combat . | . . . . . . . . . . . . . . . Combat . | . . . . . . . . . . . . . . . Robot Hacks Applied . | . . . . . . . . . . . . . . . Relay Couplers Released . | . . . . . . . . . . . . . . . Fabnet Peak Effective % . | . . . . . . . . . . . . . . . Robots Rewired 1 | . . . . . . . . . . . . . . 1 Allies Hacked 1 | . . . . . . . . . . . . . . 1 Hacks Repelled . | . . . . . . . . . . . . . . . Allies | -11 -10 -10 -10 -8 -7 -6 -6 -6 -6 -5 -5 -4 -3 -3 -------- Run | Yrd Mat Min Sub Mat Fac Fac Low Low Zio Pro Fac Fac Res Tes Total Allies 13 | . . . . . . . . . 4 . 2 3 3 1 Largest Group 4 | . . . . . . . . . 4 . 2 3 2 1 Highest-Rated Group 192 | . . . . . . . . . 151 . 102 117 192 164 Highest-Rated Ally 164 | . . . . . . . . . 39 . 51 39 96 164 Zionite Dispatches 3 | . . . . . . . . . . . 1 1 1 . Light 1 | . . . . . . . . . . . . . 1 . Fire 1 | . . . . . . . . . . . . 1 . . Hacker 1 | . . . . . . . . . . . 1 . . . Total Orders . | . . . . . . . . . . . . . . . Ally Attacks 17 | . . . . . . . . . . . . 6 10 1 Total Damage 618 | . . . . . . . . . . . . 80 437 101 Kills 2 | . . . . . . . . . . . . . 2 . Allies Corrupted 1 | . . . . . . . . . . . . . . 1 Allies Melted . | . . . . . . . . . . . . . . . Intel | -11 -10 -10 -10 -8 -7 -6 -6 -6 -6 -5 -5 -4 -3 -3 ------- Run | Yrd Mat Min Sub Mat Fac Fac Low Low Zio Pro Fac Fac Res Tes Robot Analysis Total 2 | . 2 . . . . . . . . . . . . . Derelict Logs Recovered 3 | . . . 1 . . . 1 . 1 . . . . . Drone Launches . | . . . . . . . . . . . . . . . Drone Recoveries . | . . . . . . . . . . . . . . . Zionite Intel Received 13 | . . . . . . . . . . . 4 . 3 6 Main Access 1 | . . . . . . . . . . . . . . 1 Branch Access 1 | . . . . . . . . . . . . . . 1 Emergency Access 1 | . . . . . . . . . . . 1 . . . Component Stockpiles 1 | . . . . . . . . . . . . . . 1 Component Schematics 3 | . . . . . . . . . . . 1 . 1 1 Prototype Schematics 1 | . . . . . . . . . . . . . . 1 Unaware Analyses 1 | . . . . . . . . . . . . . 1 . Trap Installations 1 | . . . . . . . . . . . 1 . . . Active Garrisons 2 | . . . . . . . . . . . . . 1 1 Depthwide Sectors/-1 1 | . . . . . . . . . . . 1 . . . Exploration | -11 -10 -10 -10 -8 -7 -6 -6 -6 -6 -5 -5 -4 -3 -3 ------------- Run | Yrd Mat Min Sub Mat Fac Fac Low Low Zio Pro Fac Fac Res Tes Turns Passed 4906 | 81 59 233 915 522 335 761 58 127 657 122 223 306 185 322 Spaces Moved 6136 | 52 57 83 634 360 259 572 226 284 953 240 612 681 556 567 Core 7 | 7 . . . . . . . . . . . . . . Treads . | . . . . . . . . . . . . . . . Legs . | . . . . . . . . . . . . . . . Wheels 1102 | 45 57 83 634 283 . . . . . . . . . . Hover . | . . . . . . . . . . . . . . . Flight 5027 | . . . . 77 259 572 226 284 953 240 612 681 556 567 Fastest Speed 12 | 50 80 100 85 31 28 24 12 12 25 25 12 13 13 19 Average Speed 48 | 75 86 100 103 101 107 37 21 37 51 25 22 26 23 23 Slowest Speed 197 | 80 100 100 125 140 197 111 24 96 96 25 99 96 27 28 Overloaded Moves 164 | . . . . . . . 25 33 . . 41 5 28 32 Propulsion Burnouts . | . . . . . . . . . . . . . . . Robots Hopped 55 | . . . . 4 . . 1 . . . 6 11 12 21 Cave-ins Triggered 2 | . . . . 1 . . . . . . . . . 1 Exploration Rate (%) 33 | 3 13 19 38 33 10 15 49 51 89 55 22 23 23 60 Regions Visited 14 Branch Regions 7 Pre-discovered Areas 11 | . . . 1 . . . 1 . 4 . 5 . . . Known Exits Taken 2 | . . . . 1 1 . . . . . . . . . Unknown Exits Taken 12 | 1 1 1 1 . . 1 1 1 1 1 1 1 1 . Scrap Searched 13 | . . . 1 . . . 5 1 5 1 . . . . Spaces Dug 37 | . . . 5 . 4 5 . . 2 . 3 . 3 15 Terrain Destroyed 166 | . . . 52 82 4 5 . . 2 . 3 . 3 15 Melee 32 | . . . . . 4 5 . . 2 . 3 . 3 15 Projectile . | . . . . . . . . . . . . . . . AOE 134 | . . . 52 82 . . . . . . . . . . Terrain Rammed . | . . . . . . . . . . . . . . . Walls Destroyed . | . . . . . . . . . . . . . . . Machines Disabled . | . . . . . . . . . . . . . . . Actions | -11 -10 -10 -10 -8 -7 -6 -6 -6 -6 -5 -5 -4 -3 -3 --------- Run | Yrd Mat Min Sub Mat Fac Fac Low Low Zio Pro Fac Fac Res Tes Total 7689 | 74 68 229 801 470 301 1091 232 304 1109 301 671 782 593 663 Wait 1061 | . . 139 89 28 13 463 1 20 142 61 26 53 14 12 Move 6018 | 51 56 82 633 351 258 571 223 283 952 239 599 658 533 529 Hop 48 | . . . . 4 . . 1 . . . 6 11 10 16 Pick Up 83 | 7 5 3 8 13 5 7 1 . 6 . 5 8 7 8 Fast Attach 68 | 6 1 1 4 12 6 10 1 . 1 . 6 8 4 8 Attach 41 | 1 . . 3 3 1 . 2 1 . 1 2 4 10 13 Detach 17 | . . . . 2 1 1 . . . . 1 4 3 5 Swap 34 | . 1 1 3 7 3 5 . . . . 2 7 2 3 Drop 102 | 1 5 . 5 20 5 17 2 . 3 . 9 17 6 12 Fire 98 | 8 . 3 56 30 . . . . . . . . . 1 Melee 111 | . . . . . 9 17 1 . 5 . 15 12 4 48 Ram 1 | . . . . . . . . . . . . . . 1 Kick . | . . . . . . . . . . . . . . . Crush . | . . . . . . . . . . . . . . . Escape Stasis 1 | . . . . . . . . . . . . . . 1 Rewire 6 | . . . . . . . . . . . . . . 6 Trap . | . . . . . . . . . . . . . . . Miscellaneous . | . . . . . . . . . . . . . . . Route ------- -11/Scrapyard -10/Materials -10/Mines -10/Subcaves -8/Materials -7/Factory -6/Factory -6/Lower Caves -6/Lower Caves -6/Zion -5/Proximity Caves -5/Factory -4/Factory -3/Research -3/Testing (discovered 1 exit: Res) History --------- Turn | Location | Event 8 | -11/Scrapyard | Discovered new exit (range 15) 82 | -11/Scrapyard | Entered Materials 132 | -10/Materials | Discovered new exit (range 10) 141 | -10/Materials | Entered Mines 318 | -10/Mines | Build established: Mutant 372 | -10/Mines | Discovered new exit (range 3) 374 | -10/Mines | Entered Subcaves 468 | -10/Subcaves | Shifting Twisted Machinery released Sub. Power Source 468 | -10/Subcaves | Shifting Twisted Machinery released Battle Rifle 495 | -10/Subcaves | Ambushed by swarm of Subdwellers 495 | -10/Subcaves | Ambushed by Subdwellers from Twisted Machinery 495 | -10/Subcaves | Ambushed by Subdwellers from Twisted Machinery 495 | -10/Subcaves | Ambushed by Subdwellers from Twisted Machinery 495 | -10/Subcaves | Ambushed by Subdwellers from Twisted Machinery 495 | -10/Subcaves | Ambushed by Subdwellers from Twisted Machinery 495 | -10/Subcaves | Ambushed by Subdwellers from Twisted Machinery 533 | -10/Subcaves | Ambushed by Subdweller buried in earth 706 | -10/Subcaves | Core integrity fell below 50% 1115 | -10/Subcaves | Build established: Scavenger-Mutant 1264 | -10/Subcaves | Shifting Twisted Machinery released Piercing Trap 1265 | -10/Subcaves | Discovered new exit (range 7) 1274 | -10/Subcaves | Learned location of Storage (-8) 1282 | -10/Subcaves | Core integrity fell below 20% 1289 | -10/Subcaves | Entered Materials 1289 | -8/Materials | Evolved 4 slots: Propulsion x2, Utility x2 1386 | -8/Materials | Crushed by falling debris 1720 | -8/Materials | Core integrity fell below 50% 1802 | -8/Materials | Discovered new exit (range 9) 1810 | -8/Materials | Identified exit to Factory 1811 | -8/Materials | Entered Factory 1811 | -7/Factory | Evolved 2 slots: Propulsion x2 2014 | -7/Factory | Build established: Mutant 2103 | -7/Factory | Discovered new exit (range 9) 2113 | -7/Factory | Identified exit to Factory 2146 | -7/Factory | Entered another Factory area 2146 | -6/Factory | Evolved 2 slots: Utility x2 2221 | -6/Factory | Fabricated Propulsion Shielding (x2) 2905 | -6/Factory | Discovered new exit (range 5) 2907 | -6/Factory | Entered Lower Caves 2917 | -6/Lower Caves | Attracted the attention of an 0b10 outpost 2931 | -6/Lower Caves | Learned location of Zion (-6) 2963 | -6/Lower Caves | Discovered new exit (range 9) 2965 | -6/Lower Caves | Entered another Lower Caves area 2989 | -6/Lower Caves | Encountered a Warlord checkpoint 3014 | -6/Lower Caves | Spotted B-75 Beast 3076 | -6/Lower Caves | Discovered new exit (range 17) 3092 | -6/Lower Caves | Entered Zion 3128 | -6/Zion | Received a hallucinogenic algorithm 3146 | -6/Zion | Discovered new exit (range 18) 3368 | -6/Zion | Learned Factory emergency access door positions 3410 | -6/Zion | Learned location of Armory (-4) 3458 | -6/Zion | Imprinted 3460 | -6/Zion | Declared Zion's savior 3510 | -6/Zion | Learned location of Warlord (-5) 3662 | -6/Zion | Found Relay Coupler [Programmer] 3747 | -6/Zion | Build established: Sprinter 3749 | -6/Zion | Entered Proximity Caves 3750 | -5/Proximity Caves | Spotted B-75 Beast 3868 | -5/Proximity Caves | Attracted the attention of an 0b10 outpost 3870 | -5/Proximity Caves | Discovered new exit (range 6) 3871 | -5/Proximity Caves | Entered Factory 3871 | -5/Factory | Evolved 2 slots: Power x1, Propulsion x1 3925 | -5/Factory | Spotted B-75 Beast 3949 | -5/Factory | Retrieved Zion intel report: Trap Installations 3950 | -5/Factory | Zion Hacker squad teleported in 4027 | -5/Factory | Fabricated Propulsion Shielding (x2) 4051 | -5/Factory | Retrieved Zion intel report: Component Schematics 4063 | -5/Factory | Retrieved Zion intel report: Depthwide Sectors/-1 4080 | -5/Factory | Retrieved Zion intel report: Emergency Access 4087 | -5/Factory | Discovered new exit (range 9) 4094 | -5/Factory | Entered another Factory area 4094 | -4/Factory | Evolved 2 slots: Propulsion x1, Utility x1 4126 | -4/Factory | Found Prototype Hackware 4166 | -4/Factory | Zion Fire squad teleported in 4374 | -4/Factory | Repaired Adv. Weight Redist. System 4376 | -4/Factory | Search patrols dispatched 4399 | -4/Factory | Discovered new exit (range 5) 4400 | -4/Factory | Entered Research 4400 | -3/Research | Evolved 2 slots: Utility x2 4402 | -3/Research | Identified Exp. System Shield 4447 | -3/Research | Retrieved Zion intel report: Unaware Analyses 4457 | -3/Research | Retrieved Zion intel report: Active Garrisons 4520 | -3/Research | Retrieved Zion intel report: Component Schematics 4521 | -3/Research | Zion Light squad teleported in 4568 | -3/Research | Lost 3 allies 4583 | -3/Research | Discovered new exit (range 11) 4585 | -3/Research | Entered Testing 4593 | -3/Testing | Retrieved Zion intel report: Main Access 4593 | -3/Testing | Identified exit to Research 4596 | -3/Testing | Found Fusion Bomb Launcher 4601 | -3/Testing | Retrieved Zion intel report: Component Stockpiles 4616 | -3/Testing | Retrieved Zion intel report: Component Schematics 4624 | -3/Testing | Retrieved Zion intel report: Prototype Schematics 4629 | -3/Testing | Found Prototype Processor 4629 | -3/Testing | Identified Exp. Signal Interpreter 4641 | -3/Testing | Spotted PX-NJTYHBKZOY 4648 | -3/Testing | Rewired PX-NJTYHBKZOY 4692 | -3/Testing | Found Prototype Device 4692 | -3/Testing | Identified Exp. Hardlight Generator 4694 | -3/Testing | System corruption reached 10% 4702 | -3/Testing | Found Prototype Slashing Weapon 4702 | -3/Testing | Identified Vibroblade 4707 | -3/Testing | Found Vibroblade 4712 | -3/Testing | Retrieved Zion intel report: Active Garrisons 4713 | -3/Testing | Lost 6 parts (1p2n3u) 4714 | -3/Testing | Retrieved Zion intel report: Branch Access 4723 | -3/Testing | Scanned by Researcher 4763 | -3/Testing | Found Prototype Hackware 4763 | -3/Testing | Identified System Mapper 4791 | -3/Testing | Spotted Striker 4791 | -3/Testing | Spotted Striker 4794 | -3/Testing | Build established: Hacker-Sprinter 4821 | -3/Testing | Crushed by falling debris 4838 | -3/Testing | Spotted Alpha 7 4866 | -3/Testing | Core integrity fell below 50% 4882 | -3/Testing | Destroyed Striker 4885 | -3/Testing | Search patrols dispatched 4885 | -3/Testing | Lost 17 parts (2p6n8u1w) 4895 | -3/Testing | Core integrity fell below 20% 4907 | -3/Testing | Destroyed by Alpha 7 with Multirail Last Messages --------------- 04884_ Y-72 Warden Med. Treads severed. 04885_ ALERT: Heightened foreign activity detected, dispatching search patrol. 04885_ Slug penetrates Machine. 04891_ System corrupted: Energy discharge (-40). 04900_ Penetrated by Slug. 04900_ Mak. Hacking Suite destroyed. 04903_ Penetrated by Slug. 04903_ C-55 Analyst calls for reinforcements. 04903_ ALERT: Hostile activity reported, dispatching reinforcements to area. 04903_ Held in stasis. 04903_ C-55 Analyst is analyzing... 04904_ M-28 Smith destroyed. 04904_ Fusion Bomb Launcher destroyed. 04905_ P-80 Master resets Striker, system corruption cleaned. 04906_ Enh. Optical Array destroyed. 04907_ XFWI9VWLDE 2XNM3H